Cogmind - Beta 11.1 @@@ ROGUE MODE // 2022.05.03 @ 10:20:21 Player: Boris Result: Destroyed by 8R-AWN with 8R-AWN's Boregun Performance ------------- Evolutions (0) 0 Regions Visited (3) 600 Robots Destroyed (30) 150 Value Destroyed (417) 417 Prototype IDs (25) 500 Alien Tech Used (0) 0 Bonus (300) 300 TOTAL SCORE: 1967 Bonus ------- Aligned with FarCom 300 Cogmind --------- Core Integrity 0/250 Matter 228/300 Energy 250/250 System Corruption 0% Temperature Cool (0) Movement Treading (320) Ox2 Location -10/Exiles Parts ------- > --- POWER (1) -------- Ion Engine > --- PROPULSION (2) --- Light Treads Light Treads > --- UTILITY (2) ------ Huge Storage Unit Improved Light Armor Plating > --- WEAPON (2) ------- Longsword +1 > --- INVENTORY (25) --- Ion Engine Ion Engine Light Deuterium Engine Wheel Wheel Wheel Wheel Wheel Compact Wheel Combat Airjet Large Matter Pod (150) Structural Scanner Seismic Detector Chronowheel EM Pulse Gun Assault Rifle Light Assault Rifle AWS/Gauss Light Cannon Grenade Launcher Mining Laser Peak State ------------ > --- POWER ------------ Ion Engine > --- PROPULSION ------- Wheel Wheel > --- UTILITY ---------- Huge Storage Unit Improved Light Armor Plating > --- WEAPON ----------- Light Cannon Longsword +1 > --- INVENTORY -------- Ion Engine Ion Engine Light Deuterium Engine Nuclear Core Fission Core Light Treads Light Treads Wheel Wheel Wheel Compact Wheel Combat Airjet Large Matter Pod Structural Scanner Seismic Detector Chronowheel EM Pulse Gun Assault Rifle Light Assault Rifle AWS/Gauss Light Cannon Grenade Launcher Mining Laser [Rating: 22] Favorites ----------- Power Ion Engine Engine Ion Engine Propulsion Wheel Treads Light Treads Wheel Wheel Utility Huge Storage Unit Device Seismic Detector Storage Huge Storage Unit Processor Signal Interpreter Protection Improved Light Armor Plating Weapon Light Cannon Ballistic Gun Assault Rifle Ballistic Cannon Light Cannon Launcher Grenade Launcher Slashing Weapon Longsword +1 Build | -11 -10 -10 -10 ------- Run | Scr Mat Min Exi Slots Evolved . | . . . . Power . | . . . . Propulsion . | . . . . Utility . | . . . . Weapon . | . . . . Parts Attached 24 | 7 6 5 6 Power 1 | 1 . . . Engine 1 | 1 . . . Core . | . . . . Reactor . | . . . . Propulsion 6 | 2 2 . 2 Treads 4 | 2 . . 2 Leg . | . . . . Wheel 2 | . 2 . . Hover . | . . . . Flight . | . . . . Utility 5 | 2 2 . 1 Device 1 | 1 . . . Storage 2 | 1 1 . . Processor 1 | . 1 . . Hackware . | . . . . Protection 1 | . . . 1 Artifact . | . . . . Weapon 12 | 2 2 5 3 Energy Gun . | . . . . Energy Cannon . | . . . . Ballistic Gun 2 | 2 . . . Ballistic Cannon 5 | . 2 3 . Launcher 3 | . . 2 1 Special Weapon . | . . . . Impact Weapon . | . . . . Slashing Weapon 2 | . . . 2 Piercing Weapon . | . . . . Special Melee Weapon . | . . . . Unidentified Prototypes . | . . . . Parts Lost 2 | . . 1 1 Power . | . . . . Propulsion . | . . . . Utility . | . . . . Weapon 2 | . . 1 1 Highest Loss Streak 1 | . . 1 1 To Critical Strikes 1 | . . . 1 Average Slot Usage (%) 93 | . 99 90 93 Engine 14 | . 14 14 14 Treads 6 | . 21 . 2 Wheel 21 | . 6 28 25 Device 3 | . 11 . . Storage 14 | . 14 14 14 Processor 2 | . 2 4 . Protection 2 | . . . 7 Ballistic Cannon 24 | . 24 27 20 Slashing Weapon 2 | . . . 7 Naked Turns . | . . . . Heaviest Build 94 | 14 92 91 94 Greatest Support 40 | 40 40 20 40 Greatest Overweight (x) 9 | . 9 4 4 Average Overweight (x) 3 | . 3 4 3 Largest Inventory Capacity 25 | 8 25 25 25 Average Capacity 21 | 7 15 25 25 Most Carried 25 | 4 11 20 25 Average Carried 15 | 2 8 16 22 Final Capacity 25 | 8 25 25 25 Final Carried 22 | 4 11 20 22 Class Distribution -------------------- 100% | Mutant Dominant Class ---------------- Mutant | -10/Materials Mutant | -10/Mines Mutant | -10/Exiles Resources | -11 -10 -10 -10 ----------- Run | Scr Mat Min Exi Matter Collected 1241 | 338 543 323 37 Remotely . | . . . . Salvage Created 977 | 139 470 333 35 Parts 65 | 7 38 20 . Haulers Intercepted . | . . . . Recyclers Shooed 3 | . 1 2 . Parts Field Recycled . | . . . . Retrieved Matter . | . . . . Parts Self-Destructed . | . . . . Prevented . | . . . . Kills | -11 -10 -10 -10 ------- Run | Scr Mat Min Exi Combat Hostiles Destroyed 23 | . 6 13 4 Melee 2 | . . . 2 Cannons 15 | . 6 9 . AOE 6 | . . 4 2 Classes Destroyed 9 | 3 2 4 . Worker 5 | 1 3 1 . Builder 1 | . . 1 . Tunneler 1 | 1 . . . Recycler 9 | 1 4 4 . Watcher 1 | . 1 . . Swarmer 6 | . . 6 . Grunt 6 | . 6 . . Demolisher 1 | . . 1 . Assembled 10 | . . 6 4 Best Kill Streak 6 | 1 5 6 4 Combat Bots Only 6 | . 2 6 4 Max Kills in Single Turn 4 | 1 1 4 1 Gunslinging . | . . . . Exploded 4 | . . 4 1 Melee 1 | . . . 1 Uniques/NPCs Destroyed . | . . . . Combat | -11 -10 -10 -10 -------- Run | Scr Mat Min Exi Damage Taken 998 | . 163 304 531 Core 259 | . 38 98 123 Absorbed by Shields . | . . . . Core Remaining (%) 100 | 100 . . . Volleys Fired 87 | 17 30 34 6 Largest 2 | 2 2 2 1 Hottest 70 | 40 70 70 35 Shots Fired 164 | 34 60 64 6 Gun 34 | 34 . . . Cannon 122 | . 60 61 1 Launcher 8 | . . 3 5 Special . | . . . . Kinetic 156 | 34 60 61 1 Thermal . | . . . . Explosive 8 | . . 3 5 Electromagnetic . | . . . . Robot Hit Streak 9 | 9 7 7 2 Robot Miss Streak 4 | 1 2 4 1 Penetration Max . | . . . . Secondary Targets . | . . . . Shots Hit Robots 107 | 22 36 38 11 Core Hits 58 | 6 16 31 5 Critical Kills . | . . . . Critical Parts Destroyed . | . . . . Critical Strikes 5 | . 3 2 . Blast 5 | . 3 2 . Melee Attacks 13 | . . . 13 Impact . | . . . . Slashing 13 | . . . 13 Piercing . | . . . . Sneak Attacks . | . . . . Combat Hostiles . | . . . . Follow-up Attacks . | . . . . Damage Inflicted 2402 | 235 589 1008 570 Guns 235 | 235 . . . Cannons 1261 | . 588 673 . Explosions 522 | . . 335 187 Melee 383 | . . . 383 Ramming 1 | . 1 . . Kinetic 1496 | 235 588 673 . Thermal . | . . . . Explosive 522 | . . 335 187 Electromagnetic . | . . . . Impact . | . . . . Slashing 383 | . . . 383 Piercing . | . . . . Highest Corruption . | . . . . Average Corruption . | . . . . Corruption Purged . | . . . . Corruption Blocked . | . . . . Overload Shots . | . . . . Overflow Damage 40 | . . 22 18 Projectiles 22 | . . 22 . Explosions 18 | . . . 18 Melee . | . . . . Knockbacks 27 | . 13 14 . Impact 1 | . 1 . . Kinetic 26 | . 12 14 . Secondary . | . . . . Self-Inflicted Damage 80 | . . 8 72 Shots 4 | . . 1 3 Rammed 1 | . 1 . . Targets Rammed 1 | . 1 . . Kicked . | . . . . Crushed . | . . . . Highest Temperature 66 | . 66 63 . Average Temperature 19 | . 20 17 . Received Heat Transfer 84 | . 84 . . Siege Activations . | . . . . Robots Corrupted . | . . . . Combat Hostiles . | . . . . Parts Fried . | . . . . Impact Corruptions . | . . . . Robots Melted . | . . . . Combat Hostiles . | . . . . Parts Melted 1 | . . 1 . Heat Transferred . | . . . . Parts Sabotaged . | . . . . Parts Stolen . | . . . . Parts Stripped . | . . . . Power Chain Reactions . | . . . . Missiles Intercepted . | . . . . Alert | -11 -10 -10 -10 ------- Run | Scr Mat Min Exi Peak Influence 276 | 15 261 276 . Initial 55 | . 9 55 . Average 104 | 5 124 106 . Maximum Alert Level 1 | . 1 1 . Low Security (%) 79 | 100 81 75 . Level 1 20 | . 18 24 . Level 2 . | . . . . Level 3 . | . . . . Level 4 . | . . . . Level 5 . | . . . . High Security . | . . . . Max Security . | . . . . Squads Dispatched 1 | . 1 . . Investigation 1 | . 1 . . Extermination . | . . . . Reinforcement . | . . . . Assault . | . . . . Garrison . | . . . . Intercept . | . . . . Searches Triggered . | . . . . Construction Impeded . | . . . . Haulers Reinforced . | . . . . Active Scanning Responses . | . . . . Cargo Convoy Interrupts . | . . . . Stealth | -11 -10 -10 -10 --------- Run | Scr Mat Min Exi Distress Signals 1 | . 1 . . Communications Jammed . | . . . . Distress Signals . | . . . . Times Spotted 38 | . 11 22 5 Peak Tracking Total 13 | . 3 13 9 Tactical Retreats 2 | . 2 . . Traps | -11 -10 -10 -10 ------- Run | Scr Mat Min Exi Traps Triggered . | . . . . Indirectly . | . . . . Trap Hack Attempts . | . . . . Triggered . | . . . . Disarmed . | . . . . Reprogrammed . | . . . . Reused . | . . . . Traps Extracted . | . . . . Installed . | . . . . Triggered . | . . . . Exploded 3 | . . . 3 Machines | -11 -10 -10 -10 ---------- Run | Scr Mat Min Exi Machines Disabled 4 | . . . 4 Max in Single Turn 2 | . . . 2 Machines Sabotaged . | . . . . Garrisons Compromised . | . . . . Overloaded Fab Kills . | . . . . Hacking | -11 -10 -10 -10 --------- Run | Scr Mat Min Exi Machines Accessed 5 | . 3 . 2 Terminals 2 | . 2 . . Fabricators . | . . . . Repair Stations . | . . . . Recycling Units 1 | . 1 . . Scanalyzers . | . . . . Garrison Access . | . . . . Total Hacks 13 | . 11 . 2 Successful 6 | . 4 . 2 Failed 6 | . 6 . . Catastrophic . | . . . . Database Lockouts 1 | . 1 . . Manual 11 | . 10 . 1 Terminals 10 | . 10 . . Fabricators . | . . . . Repair Stations . | . . . . Recycling Units 1 | . 1 . . Scanalyzers . | . . . . Garrison Access . | . . . . Terminal Hacks 4 | . 2 . 2 Record 1 | . . . 1 Robot Analysis 1 | . 1 . . Prototype ID Bank 1 | . 1 . . EX-Prototype ID Bank 1 | . . . 1 Fabricator Hacks . | . . . . Repair Station Hacks . | . . . . Recycling Unit Hacks . | . . . . Scanalyzer . | . . . . Garrison Access Hacks . | . . . . Unauthorized Hacks 2 | . 2 . . Terminals 1 | . 1 . . Botnet 1 | . 1 . . Fabricators . | . . . . Repair Stations . | . . . . Recycling Units 1 | . 1 . . Tunnel 1 | . 1 . . Scanalyzers . | . . . . Garrison Access . | . . . . Data Cores Recovered . | . . . . Used . | . . . . Hacking Detections 2 | . 2 . . Full Trace Events . | . . . . Feedback Events . | . . . . Feedback Blocked . | . . . . Robot Schematics Acquired . | . . . . Robots Built . | . . . . Authchips . | . . . . Time . | . . . . Total Robot Build Rating . | . . . . Part Schematics Acquired . | . . . . Parts Built . | . . . . Authchips . | . . . . Time . | . . . . Total Part Build Rating . | . . . . Parts Repaired . | . . . . Time . | . . . . Parts Recycled . | . . . . Recycled Matter . | . . . . Retrieved Matter . | . . . . Retrieved Components . | . . . . Parts Scanalyzed . | . . . . Part Schematics Acquired . | . . . . Parts Damaged . | . . . . Bothacking | -11 -10 -10 -10 ------------ Run | Scr Mat Min Exi Used RIF Installer . | . . . . Robots Hacked . | . . . . Non-combat . | . . . . Combat . | . . . . Robot Hacks Applied . | . . . . Relay Couplers Released . | . . . . Fabnet Peak Effective % . | . . . . Robots Rewired . | . . . . Allies Hacked . | . . . . Hacks Repelled . | . . . . Allies | -11 -10 -10 -10 -------- Run | Scr Mat Min Exi Total Allies 1 | . . 1 . Largest Group 1 | . . 1 . Highest-Rated Group 31 | . . 31 . Highest-Rated Ally 31 | . . 31 . Total Orders . | . . . . Ally Attacks . | . . . . Total Damage . | . . . . Kills . | . . . . Allies Corrupted . | . . . . Allies Melted . | . . . . Intel | -11 -10 -10 -10 ------- Run | Scr Mat Min Exi Robot Analysis Total 1 | . 1 . . Derelict Logs Recovered 1 | . . 1 . Drone Launches . | . . . . Drone Recoveries . | . . . . Exploration | -11 -10 -10 -10 ------------- Run | Scr Mat Min Exi Turns Passed 2588 | 148 653 1012 775 Spaces Moved 1471 | 55 292 637 487 Core 1 | 1 . . . Treads 240 | 54 182 . 4 Legs . | . . . . Wheels 1230 | . 110 637 483 Hover . | . . . . Flight . | . . . . Fastest Speed 50 | 50 95 140 140 Average Speed 148 | 158 175 140 141 Slowest Speed 320 | 160 215 140 320 Overloaded Moves . | . . . . Propulsion Burnouts . | . . . . Robots Hopped . | . . . . Cave-ins Triggered . | . . . . Exploration Rate (%) 52 | 5 47 96 61 Regions Visited 3 Branch Regions 2 Pre-discovered Areas 2 | . 1 . 1 Known Exits Taken 1 | . 1 . . Unknown Exits Taken 2 | 1 . 1 . Scrap Searched 1 | . . 1 . Spaces Dug . | . . . . Terrain Destroyed 30 | . . 12 18 Melee . | . . . . Projectile . | . . . . AOE 30 | . . 12 18 Terrain Rammed . | . . . . Walls Destroyed . | . . . . Machines Disabled . | . . . . Actions | -11 -10 -10 -10 --------- Run | Scr Mat Min Exi Total 1700 | 82 372 692 554 Wait 67 | . 31 4 32 Move 1468 | 54 291 636 487 Hop . | . . . . Pick Up 29 | 4 8 11 6 Fast Attach 9 | 7 2 . . Attach 2 | . . 1 1 Detach 2 | . 1 1 . Swap 13 | . 4 4 5 Drop 9 | . 4 1 4 Fire 87 | 17 30 34 6 Melee 13 | . . . 13 Ram . | . . . . Kick . | . . . . Crush 1 | . 1 . . Escape Stasis . | . . . . Rewire . | . . . . Trap . | . . . . Miscellaneous . | . . . . Route ------- -11/Scrapyard -10/Materials (discovered 2 exits: *Mat / *Min) -10/Mines (discovered 3 exits: *Mat x2 / *Exi) -10/Exiles (discovered 2 exits: Min x2) History --------- Turn | Location | Event 21 | -11/Scrapyard | Discovered new exit (range 16) 149 | -11/Scrapyard | Entered Materials 308 | -10/Materials | Build established: Mutant 351 | -10/Materials | Central database locked down 662 | -10/Materials | Discovered new exit (range 5) 682 | -10/Materials | Identified exit to Materials 778 | -10/Materials | Discovered new exit (range 15) 799 | -10/Materials | Identified exit to Mines 802 | -10/Materials | Entered Mines 1084 | -10/Mines | Discovered exit to Materials (range 5) 1128 | -10/Mines | Assembled infested the area 1218 | -10/Mines | Core integrity fell below 50% 1486 | -10/Mines | Received a Mining Laser from a helpful Derelict 1628 | -10/Mines | Discovered exit to Materials (range 5) 1808 | -10/Mines | Deemed a non-threat by the Exiles lab entrance 1808 | -10/Mines | Discovered new exit (range 5) 1814 | -10/Mines | Entered Exiles 1815 | -10/Exiles | Identified exit to Mines 1848 | -10/Exiles | Met 8R-AWN 1872 | -10/Exiles | Met EX-HEX 1910 | -10/Exiles | Met EX-BIN 1928 | -10/Exiles | Met EX-DEC 1933 | -10/Exiles | Learned location of Zion (-6) 1975 | -10/Exiles | Aligned with FarCom system 1977 | -10/Exiles | Given EX-Vault access code 2013 | -10/Exiles | Opened EX-Vault 2020 | -10/Exiles | Found Chronowheel 2027 | -10/Exiles | Found Longsword +1 2031 | -10/Exiles | Found AWS/Gauss 2062 | -10/Exiles | Warned to stay clear of 0b10 Research branches 2483 | -10/Exiles | Attacked by the Exiles 2573 | -10/Exiles | Core integrity fell below 20% 2589 | -10/Exiles | Destroyed by 8R-AWN with 8R-AWN's Boregun Last Messages --------------- 02578_ Penetrated by HV Slug. 02578_ HV Slug penetrates Earth. 02580_ Penetrated by HV Slug. 02580_ HV Slug penetrates Earth. 02580_ Penetrated by HV Slug. 02580_ Critical hit (Destroy). 02580_ Lgt. Cannon destroyed. 02580_ HV Slug penetrates Earth. 02581_ Earth collapses. 02582_ The unstable cave ceiling collapses. 02582_ Penetrated by HV Slug. 02582_ HV Slug penetrates Earth. 02582_ Penetrated by HV Slug. 02582_ HV Slug penetrates Earth. 02584_ Penetrated by HV Slug. 02584_ HV Slug penetrates Earth. 02584_ HV Slug penetrates Wall. 02589_ Penetrated by HV Slug. 02589_ HV Slug penetrates Earth. 02589_ Penetrated by HV Slug. Map ----- +----------------------------------------------------+ | ?????????????????????????????????????????????????? | | ?????????????????????????????????????????????????? | | ?????????????????????????????????????????????????? | | ?????????????????????????????????????????????????? | | ?????????????????????????????????????????????????? | | ?????????????????????????????????????????????????? | | ?????????????????????????????????????????????????? | | ??????????>??????????????????????????????????????? | | ?????????????????????????????????????????????????? | | ?????????????????????????????????????????????????? | | ?????????????????????????????????????????????????? | | ?????????????????????????????????????????????????? | | ?????????????????????????????????????????????????? | | ????????????????????????????#######??????????????? | | ?????????????? ######???????#!!! "#??????????????? | | ?????????????? #""#??????# "#??????????????? | | ?????????????? ??????# "#??????????????? | | ????????????? #????## ""#????????????### | | ????????????? #####" ""#???????????? " | | ?????????????? ##" ""????????????"" " | | ??????????????? #"" #????????????#"" | | ?????????????????# #????????????#"" | | ??????????????????### ##???????????#"" | | ??????????????????# ## "##??????????? | | ??????????????##### g ;##???????????" | | ??????????????# !! @ ##??????????# | | ??????????????#! ### ######???### | | ??????????????#! ###" """#####X# | | ??????????????#! ##?#" * | | ??????????????# ! #??#"# | | ??????????????### ## # #??#### * | | ????????????????##?###### #?????### | | ????????????????????????# #???????### | | ????????????????????????# #?????????## | | ????????????????????????? ???????????## | | ????????????????????????? ????????????##" | | ????????????????????????? ?????????????#"" | | ????????????????????????? ?????????????#" | | ????????????????????????? ????????????#"" | | ?????????????????????????#????????????#""" | | ??????????????????????????????????????""" | | ??????????????????????????????????????""" | | ???????????????????????????????????????" | | ??????????????????????????????????????""" | | ??????????????????????????????????????"" | | ???????????????????????????????????????"" | | ???????????????????????????????????????"""" | | ?????????????????????????????????????????? | | ?????????????????????????????????????????? | | ???????????????????????????????????????????? | +----------------------------------------------------+ Best States ------------- Heat Dissipation 25 Energy Generation 10 Energy Capacity 250 Matter Stores 300 Matter Capacity 300 Sight Range 16 Terrain Scan Density 10 Armor Coverage 150 Evasion (%) 40 Recoil Reduction 2 Item Schematics ----------------- None Robot Schematics ------------------ None Fabricated ------------ Nothing Alien Tech Used ----------------- None Achievements -------------- None Challenges ------------ None Game ------ Seed TachyonRestorationScythe Manual? 0 Play Time 00:18:31 Cumulative 262.9 hours Start 2022.05.03 @ 10:03:51 End 2022.05.03 @ 10:20:21 Sessions 1 Manual Loads 0 Difficulty Rogue Special Mode None Game No. 98 Rogue 83 Adventurer 15 Explorer 0 Win Type - Total 14 Types 4/0/6/1/2/0/1/0/0 Lore% 84 Gallery% 88 Achievement% 76 Wizard Run 0 Options --------- ASCII 0 Keyboard 0 Movement Numpad Keybinds 0 Fullscreen 1 Font 18/SmallcapsGlow Map View 76x50 Tactical HUD 1 Map Filters NONE Filters NONE Steam 1 RUN: 0bdec6b5-c8d3-48b8-8dd8-34aa8b3c8397